[Event "LM 2019"]
[Site "Linköping, Sweden"]
[Date "2019.01.22"]
[Round "2.10"]
[White "Ingemansson, Björn"]
[Black "Namvar, Daniel"]
[Result "0-1"]
[TimeControl "90 min + 30 sec/move"]
[WhiteElo "1671"]
[BlackElo "1496"]

1. d4 {[%clk 01:30:57]} d5 {[%clk 01:30:49]} 2. c4 {[%clk 01:31:24]} e5 {[%clk
01:31:01]} 3. dxe5 {[%clk 01:29:27]} d4 {[%clk 01:31:15]} 4. Nf3 {[%clk
01:25:50]} {[%emt 00:02:18]} Nc6 {[%clk 01:31:10]} {[%emt 00:00:35]} 5. Bg5
{[%clk 01:22:42]} {[%emt 00:03:38]} Bb4+ {[%clk 01:28:37]} {[%emt 00:03:03]} 6.
Nbd2 {[%clk 01:21:53]} {[%emt 00:01:19]} Nge7 {[%clk 01:27:32]} {[%emt
00:01:35]} 7. a3 {[%clk 01:20:43]} {[%emt 00:01:40]} h6 {[%clk 01:23:54]}
{[%emt 00:04:08]} 8. Bh4 {[%clk 01:13:21]} {[%emt 00:07:52]} Bxd2+ {[%clk
01:21:43]} {[%emt 00:02:41]} 9. Qxd2 {[%clk 01:13:33]} {[%emt 00:00:19]} g5
{[%clk 01:21:26]} {[%emt 00:00:47]} 10. Bg3 {[%clk 01:09:36]} {[%emt 00:04:27]}
Be6 {[%clk 01:17:59]} {[%emt 00:03:57]} 11. e3 {[%clk 01:05:01]} {[%emt
00:05:04]} Nf5 {[%clk 01:09:38]} {[%emt 00:08:52]} 12. e4 {[%clk 00:47:50]}
{[%emt 00:17:41]} Nxg3 {[%clk 01:07:28]} {[%emt 00:02:39]} 13. hxg3 {[%clk
00:48:08]} {[%emt 00:00:12]} g4 {[%clk 01:06:38]} {[%emt 00:01:21]} 14. Ng5
{[%clk 00:44:21]} {[%emt 00:04:18]} Qd7 {[%clk 01:05:54]} {[%emt 00:01:13]} 15.
b4 {[%clk 00:32:27]} {[%emt 00:12:24]} O-O-O {[%clk 01:01:48]} {[%emt
00:04:36]} 16. Nxe6 {[%clk 00:32:44]} {[%emt 00:00:13]} Qxe6 {[%clk 01:01:39]}
{[%emt 00:00:38]} 17. b5 {[%clk 00:27:18]} {[%emt 00:05:57]} Nxe5 {[%clk
01:00:21]} {[%emt 00:01:49]} 18. Rc1 {[%clk 00:26:54]} {[%emt 00:00:53]} f5
{[%clk 00:46:48]} {[%emt 00:14:03]} 19. Qf4 {[%clk 00:26:00]} {[%emt 00:01:24]}
fxe4 {[%clk 00:44:36]} {[%emt 00:02:42]} 20. Qxe4 {[%clk 00:24:56]} {[%emt
00:01:33]} Rhe8 {[%clk 00:41:22]} {[%emt 00:03:45]} 21. Kd2 {[%clk 00:23:33]}
{[%emt 00:01:53]} Nxc4+ {[%clk 00:38:41]} {[%emt 00:03:11]} 22. Rxc4 {[%clk
00:22:48]} {[%emt 00:01:15]} Qxe4 {[%clk 00:38:56]} {[%emt 00:00:15]} 23. Bd3
{[%clk 00:23:06]} {[%emt 00:00:12]} Qxg2 {[%clk 00:36:34]} {[%emt 00:02:51]}
0-1

[Event "LM 2019"]
[Site "Linköping, Sweden"]
[Date "2019.01.22"]
[Round "2.11"]
[White "Skytt, Klas"]
[Black "Lantz, Lars-Göran"]
[Result "1-0"]
[TimeControl "90 min + 30 sec/move"]
[WhiteElo "1652"]
[BlackElo "1290"]

1. d4 {[%clk 01:30:51]} {[%emt 00:58:56]} d5 {[%clk 01:30:50]} 2. c4 {[%clk
01:31:09]} e6 {[%clk 01:31:09]} 3. Nc3 {[%clk 01:31:24]} Nf6 {[%clk 01:31:16]}
4. Bg5 {[%clk 01:31:09]} Be7 {[%clk 01:30:27]} 5. e3 {[%clk 01:31:22]} c6
{[%clk 01:29:55]} 6. Nf3 {[%clk 01:31:22]} Nbd7 {[%clk 01:29:27]} {[%emt
00:00:54]} 7. Bd3 {[%clk 01:31:31]} {[%emt 00:00:22]} dxc4 {[%clk 01:28:53]}
{[%emt 00:01:04]} 8. Bxc4 {[%clk 01:31:49]} {[%emt 00:00:11]} Nd5 {[%clk
01:27:54]} {[%emt 00:01:28]} 9. Bxe7 {[%clk 01:30:52]} {[%emt 00:01:27]} Qxe7
{[%clk 01:26:55]} {[%emt 00:00:03]} 10. O-O {[%clk 01:31:22]} Nxc3 {[%clk
01:25:49]} {[%emt 00:03:03]} 11. bxc3 {[%clk 01:31:43]} {[%emt 00:00:08]} O-O
{[%clk 01:25:41]} {[%emt 00:00:39]} 12. Qc2 {[%clk 01:30:02]} {[%emt 00:02:12]}
b6 {[%clk 01:18:57]} {[%emt 00:07:13]} 13. Rfe1 {[%clk 01:22:32]} {[%emt
00:08:00]} Bb7 {[%clk 01:13:11]} {[%emt 00:06:17]} 14. Bd3 {[%clk 01:15:41]}
{[%emt 00:07:20]} g6 {[%clk 01:11:45]} {[%emt 00:01:56]} 15. e4 {[%clk
01:05:11]} {[%emt 00:11:00]} Nf6 {[%clk 01:04:44]} {[%emt 00:07:31]} 16. Qd2
{[%clk 01:00:46]} {[%emt 00:04:55]} Nd7 {[%clk 01:00:37]} {[%emt 00:04:37]} 17.
Qh6 {[%clk 00:54:02]} {[%emt 00:07:14]} f6 {[%clk 01:00:10]} {[%emt 00:00:53]}
18. e5 {[%clk 00:52:28]} {[%emt 00:02:08]} Qg7 {[%clk 00:58:59]} {[%emt
00:01:41]} 19. Qh3 {[%clk 00:47:49]} {[%emt 00:05:09]} Rae8 {[%clk 00:55:46]}
{[%emt 00:03:43]} 20. Bc4 {[%clk 00:46:35]} {[%emt 00:01:43]} Qf7 {[%clk
00:48:55]} {[%emt 00:07:21]} 21. exf6 {[%clk 00:45:30]} {[%emt 00:01:35]} Qxf6
{[%clk 00:45:47]} {[%emt 00:03:39]} 22. Rxe6 {[%clk 00:41:02]} {[%emt
00:04:57]} Rxe6 {[%clk 00:44:56]} {[%emt 00:01:20]} 23. Bxe6+ {[%clk 00:41:17]}
{[%emt 00:00:16]} Rf7 {[%clk 00:44:51]} {[%emt 00:00:35]} 24. Bxd7 {[%clk
00:41:14]} {[%emt 00:00:33]} c5 {[%clk 00:44:36]} {[%emt 00:00:45]} 25. Be6
{[%clk 00:40:52]} {[%emt 00:00:52]} Bxf3 {[%clk 00:43:59]} {[%emt 00:01:06]} 26.
Bxf7+ {[%clk 00:41:05]} {[%emt 00:00:17]} Qxf7 {[%clk 00:43:39]} {[%emt
00:00:50]} 27. Qxf3 {[%clk 00:41:22]} {[%emt 00:00:13]} 1-0

[Event "LM 2019"]
[Site "Linköping, Sweden"]
[Date "2019.01.22"]
[Round "2.13"]
[White "Burmansson, Mattias 2"]
[Black "Uvhagen, Lennart 2"]
[Result "0-1"]
[TimeControl "90 min + 30 sec/move"]
[WhiteElo "1176"]
[BlackElo "1862"]

1. e4 {[%clk 01:30:58]} d6 {[%clk 01:30:54]} 2. Nc3 {[%clk 01:30:59]} Nf6
{[%clk 01:31:18]} 3. Nf3 {[%clk 01:31:19]} g6 {[%clk 01:31:43]} 4. Bc4 {[%clk
01:31:20]} Bg7 {[%clk 01:32:07]} 5. d3 {[%clk 01:31:30]} O-O {[%clk 01:29:56]}
6. Be3 {[%clk 01:31:29]} {[%emt 00:00:09]} c6 {[%clk 01:28:05]} {[%emt
00:02:21]} 7. a3 {[%clk 01:30:24]} {[%emt 00:01:35]} Qa5 {[%clk 01:24:02]}
{[%emt 00:04:33]} 8. h3 {[%clk 01:27:52]} {[%emt 00:03:03]} e5 {[%clk
01:21:55]} {[%emt 00:02:36]} 9. b4 {[%clk 01:26:49]} {[%emt 00:01:33]} Qc7
{[%clk 01:16:15]} {[%emt 00:06:10]} 10. Qd2 {[%clk 01:26:33]} {[%emt 00:00:45]}
Nbd7 {[%clk 01:06:06]} {[%emt 00:10:39]} 11. O-O-O {[%clk 01:18:22]} {[%emt
00:08:42]} b5 {[%clk 00:56:06]} {[%emt 00:10:31]} 12. Bb3 {[%clk 01:17:25]}
{[%emt 00:01:27]} a5 {[%clk 00:56:29]} {[%emt 00:00:08]} 13. Bh6 {[%clk
01:14:58]} {[%emt 00:02:56]} axb4 {[%clk 00:56:40]} {[%emt 00:00:19]} 14. axb4
{[%clk 01:14:55]} {[%emt 00:00:33]} Qa7 {[%clk 00:55:30]} {[%emt 00:01:41]} 15.
Nb1 {[%clk 01:10:36]} {[%emt 00:04:49]} c5 {[%clk 00:50:27]} {[%emt 00:05:33]}
16. Bxg7 {[%clk 01:06:03]} {[%emt 00:05:02]} Kxg7 {[%clk 00:50:54]} {[%emt
00:00:03]} 17. g4 {[%clk 01:01:06]} {[%emt 00:05:27]} c4 {[%clk 00:44:27]}
{[%emt 00:06:57]} 18. dxc4 {[%clk 01:00:42]} {[%emt 00:00:54]} Nxe4 {[%clk
00:44:43]} {[%emt 00:00:14]} 19. Qe1 {[%clk 00:55:57]} {[%emt 00:05:15]} Nxf2
{[%clk 00:44:59]} {[%emt 00:00:14]} 20. Rxd6 {[%clk 00:49:43]} {[%emt
00:06:44]} Nxh1 {[%clk 00:45:19]} {[%emt 00:00:10]} 21. Qxh1 {[%clk 00:49:48]}
{[%emt 00:00:25]} bxc4 {[%clk 00:42:08]} {[%emt 00:03:41]} 22. Bxc4 {[%clk
00:39:03]} {[%emt 00:11:15]} Bb7 {[%clk 00:41:08]} {[%emt 00:01:30]} 23. Rd2
{[%clk 00:30:08]} {[%emt 00:09:24]} e4 {[%clk 00:36:14]} {[%emt 00:05:24]} 24.
Qg1 {[%clk 00:27:54]} {[%emt 00:02:44]} Qxg1+ {[%clk 00:32:39]} {[%emt
00:04:05]} 25. Nxg1 {[%clk 00:28:12]} {[%emt 00:00:12]} Ne5 {[%clk 00:32:50]}
{[%emt 00:00:20]} 26. Bb3 {[%clk 00:26:16]} {[%emt 00:02:26]} Rfc8 {[%clk
00:28:22]} {[%emt 00:04:57]} 27. Kb2 {[%clk 00:25:50]} {[%emt 00:00:56]} Nc4+
{[%clk 00:24:36]} {[%emt 00:04:16]} 28. Bxc4 {[%clk 00:25:34]} {[%emt
00:00:47]} Rxc4 {[%clk 00:25:05]} {[%emt 00:00:01]} 29. c3 {[%clk 00:25:37]}
{[%emt 00:00:26]} Rac8 {[%clk 00:23:02]} {[%emt 00:02:32]} 30. Ne2 {[%clk
00:21:51]} {[%emt 00:04:16]} e3 {[%clk 00:22:39]} {[%emt 00:00:54]} 31. Rd7
{[%clk 00:20:47]} {[%emt 00:01:34]} Bg2 {[%clk 00:19:13]} {[%emt 00:03:56]} 32.
Na3 {[%clk 00:20:06]} {[%emt 00:01:11]} Re4 {[%clk 00:18:51]} {[%emt 00:00:51]}
33. Ng3 {[%clk 00:16:04]} {[%emt 00:04:33]} e2 {[%clk 00:18:42]} {[%emt
00:00:39]} 34. Nc2 {[%clk 00:13:38]} {[%emt 00:02:56]} e1=Q {[%clk 00:15:04]}
{[%emt 00:04:07]} 35. Nxe1 {[%clk 00:13:48]} {[%emt 00:00:19]} Rxe1 {[%clk
00:15:32]} {[%emt 00:00:02]} 36. h4 {[%clk 00:14:02]} {[%emt 00:00:17]} Re3
{[%clk 00:15:47]} {[%emt 00:00:15]} 37. h5 {[%clk 00:13:14]} {[%emt 00:01:18]}
Rxg3 {[%clk 00:16:04]} {[%emt 00:00:13]} 38. hxg6 {[%clk 00:13:13]} {[%emt
00:00:32]} hxg6 {[%clk 00:16:22]} {[%emt 00:00:12]} 39. Rd4 {[%clk 00:13:26]}
{[%emt 00:00:17]} Rcxc3 {[%clk 00:16:35]} {[%emt 00:00:17]} 40. Rf4 {[%clk
00:12:40]} {[%emt 00:01:16]} Bd5 {[%clk 00:16:41]} {[%emt 00:00:23]} 41. Ka1
{[%clk 00:12:05]} {[%emt 00:01:06]} Rg2 {[%clk 00:15:44]} {[%emt 00:01:27]} 42.
Rd4 {[%clk 00:11:08]} {[%emt 00:01:27]} Rc1# {[%clk 00:16:02]} {[%emt
00:00:11]} 0-1